fUSD/lending_fUSD_20240204
["ID","MTS","AMOUNT","RATE_DAILY","PERIOD"]
[313278668,1707073064605,-345.0,0.000492,39]
[313278669,1707073064627,-1000.0,0.000492,78]
[313278670,1707073064649,-162.13039223,0.00049205,120]
[313278671,1707073064671,-461.55845005,0.000493,60]
[313278672,1707073064694,-5722.558548,0.000493,56]
[313278673,1707073064715,-1000.0,0.000493,78]
[313278674,1707073064740,-1000.0,0.00049315,90]
[313278675,1707073064763,-200.0,0.00049315,60]
[313278676,1707073064787,-128191.41418926,0.000495,120]
[313278677,1707073064827,260.9149056,0.00021785,2]
[313278678,1707073064851,285.05375891,0.00021785,2]
[313278679,1707073064880,155.14082571,0.00019607,2]
[313278680,1707073070224,-1155.49,0.00047,120]
[313278681,1707073070302,-1871808.58581074,0.000495,120]
[313278682,1707073070325,-1000000.0,0.000495,120]
[313278683,1707073070347,-157.0,0.000495,60]
[313278684,1707073070370,-1000.0,0.00049589,95]
[313278685,1707073070393,-345.0,0.000497,40]
[313278686,1707073070416,-200.0,0.000497,79]
[313278687,1707073070439,-605.95141749,0.000498,120]
[313278688,1707073070461,-929.74741577,0.000498,120]
[313278689,1707073070484,-162.13039223,0.00049836,120]
[313278690,1707073070508,-203.0,0.00049838,44]
[313278691,1707073070532,-1041.51418557,0.00049863,100]
[313278692,1707073070557,-2711.66791158,0.000499,120]
[313278693,1707073070579,-166.77756533,0.00049999,120]
[313278694,1707073070604,-50000.0,0.0005,40]
[313278695,1707073070629,-2500.0,0.0005,120]
[313278696,1707073070652,-4997.18158122,0.0005,60]
[313278697,1707073070675,-3331.79641413,0.0005,120]
[313278698,1707073070697,-1497.27635742,0.0005,120]
[313278699,1707073070719,-364.48964529,0.0005,120]
[313278700,1707073070741,-361.84957247,0.0005,120]
[313278701,1707073070763,-1000.0,0.0005,120]
[313278702,1707073070788,-55460.54173076,0.0005,120]
[313278703,1707073070816,735.5792147,0.00021,2]
[313278704,1707073073168,268.32724543,0.00021893,2]
[313278705,1707073079338,404.74039498,0.00021236,2]
[313278706,1707073079886,362.00852423,0.00021893,2]
[313278707,1707073081619,2197.7440987,0.00021674,2]
[313278708,1707073084370,203.0,0.00021893,2]
[313278709,1707073087149,2232.2179096,0.00021893,2]
[313278710,1707073087952,1029.59993686,0.00021893,2]
[313278711,1707073091869,183.66,0.00021776,2]
[313278712,1707073094910,494.07788319,0.00021893,2]
[313278713,1707073106657,808.98550887,0.00021893,2]
[313278714,1707073109087,283.58907863,0.00021893,2]
[313278715,1707073113921,206.0,0.00021893,2]
[313278716,1707073173734,203.0,0.0002174,2]
[313278717,1707073183064,250.0,0.00021918,2]
[313278718,1707073190707,167.79,0.00021747,2]
[313278719,1707073195552,2000.0,0.00021755,2]
[313278720,1707073197421,183.11,0.0002176,2]
[313278721,1707073204675,250.0,0.00021749,2]
[313278722,1707073208376,23155.40680195,0.00021749,2]
[313278723,1707073208399,159.57319805,0.00021749,2]
[313278724,1707073232483,-400.00050884,0.0004,120]
[313278725,1707073232507,-508.40368682,0.0004,120]
[313278726,1707073232545,-5824.61064327,0.000426,120]
[313278727,1707073232567,-203.0,0.00042692,33]
[313278728,1707073232589,-500.0,0.00043,60]
[313278729,1707073232612,-203.0,0.00043603,35]
[313278730,1707073232634,-3566.68812688,0.0004398,117]
[313278731,1707073232655,-389.66632407,0.0004398,118]
[313278732,1707073232678,-173.95094416,0.00044,120]
[313278733,1707073232702,-203.0,0.00044514,36]
[313278734,1707073232726,-849.74665875,0.00045,120]
[313278735,1707073232748,-12000.0,0.00045,120]
[313278736,1707073232770,-12000.0,0.000451,120]
[313278737,1707073232792,-12000.0,0.000452,120]
[313278738,1707073232814,-2071.27,0.000453,120]
[313278739,1707073232838,-203.0,0.00045425,37]
[313278740,1707073232860,-1034.59075451,0.0004588,100]
[313278741,1707073232882,-203.0,0.00046336,39]
[313278742,1707073232922,-1000.0,0.00046575,120]
[313278743,1707073232948,-1155.49,0.00047,120]
[313278744,1707073232969,-15000.0,0.00047,120]
[313278745,1707073232991,-15000.0,0.00047,120]
[313278746,1707073233020,-15000.0,0.00047163,120]
[313278747,1707073233041,-15000.0,0.00047163,120]
[313278748,1707073233064,-203.0,0.00047247,40]
[313278749,1707073233086,-15000.0,0.00047325,120]
[313278750,1707073233255,-15000.0,0.00047325,120]
[313278751,1707073233279,-15000.0,0.00047488,120]
[313278752,1707073233302,-15000.0,0.00047488,120]
[313278753,1707073233329,-1000.0,0.000476,44]
[313278754,1707073233357,-154.50057284,0.00047635,120]
[313278755,1707073233380,-154.50057284,0.00047635,120]
[313278756,1707073233402,-154.50057284,0.00047635,120]
[313278757,1707073233426,-154.50057284,0.00047635,120]
[313278758,1707073233449,-154.50057284,0.00047635,120]
[313278759,1707073233472,-154.50057284,0.00047635,120]
[313278760,1707073233494,-154.50057284,0.00047635,120]
[313278761,1707073233518,-154.50057284,0.00047635,120]
[313278762,1707073233540,-154.50057284,0.00047635,120]
[313278763,1707073233563,-154.50057284,0.00047635,120]
[313278764,1707073233584,-154.50057284,0.00047635,120]
[313278765,1707073233606,-154.50057284,0.00047635,120]
[313278766,1707073233628,-154.50057284,0.00047635,120]
[313278767,1707073233651,-154.50057284,0.00047635,120]
[313278768,1707073233674,-154.50057284,0.00047635,120]
[313278769,1707073233695,-15000.0,0.0004765,120]
[313278770,1707073233717,-15000.0,0.0004765,120]
[313278771,1707073233746,-162.13039223,0.00047699,120]
[313278772,1707073233771,-1000.0,0.000477,44]
[313278773,1707073233793,-345.0,0.000477,38]
[313278774,1707073233817,-1000.0,0.000478,44]
[313278775,1707073233841,-15000.0,0.00047813,120]
[313278776,1707073233864,-15000.0,0.00047813,120]
[313278777,1707073233887,-1000.0,0.000479,44]
[313278778,1707073233911,-15000.0,0.00047975,120]
[313278779,1707073233932,-15000.0,0.00047975,120]
[313278780,1707073233956,-4000.0,0.00048,50]
[313278781,1707073233978,-1000.0,0.00048,44]
[313278782,1707073234000,-15000.0,0.00048138,120]
[313278783,1707073234023,-15000.0,0.00048138,120]
[313278784,1707073234046,-203.0,0.00048158,42]
[313278785,1707073234070,-345.0,0.000482,38]
[313278786,1707073234099,-15000.0,0.000483,120]
[313278787,1707073234120,-15000.0,0.000483,120]
[313278788,1707073234142,-162.13039223,0.00048301,120]
[313278789,1707073234166,-3590.90763348,0.00048329,120]
[313278790,1707073234188,-3825.17641778,0.00048329,120]
[313278791,1707073234211,-15000.0,0.00048463,120]
[313278792,1707073234233,-15000.0,0.00048463,120]
[313278793,1707073234255,-15000.0,0.00048625,120]
[313278794,1707073234278,-345.0,0.000487,39]
[313278795,1707073234305,-15000.0,0.00048788,120]
[313278796,1707073234327,-15000.0,0.00048788,120]
[313278797,1707073234353,-1886.223508,0.000489,76]
[313278798,1707073234375,-15000.0,0.0004895,120]
[313278799,1707073234397,-15000.0,0.0004895,120]
[313278800,1707073234422,-680.78391248,0.00049,120]
[313278801,1707073234444,-1000.0,0.00049,77]
[313278802,1707073234477,-203.0,0.00049069,43]
[313278803,1707073234499,-1000.0,0.000491,77]
[313278804,1707073234525,-15000.0,0.00049113,120]
[313278805,1707073234547,-15000.0,0.00049113,120]
[313278806,1707073234569,-1000.0,0.000492,78]
[313278807,1707073234593,-345.0,0.000492,39]
[313278808,1707073234616,-15000.0,0.00049275,120]
[313278809,1707073234638,-15000.0,0.00049275,120]
[313278810,1707073234662,-1000.0,0.000493,78]
[313278811,1707073234690,-15000.0,0.00049438,120]
[313278812,1707073234714,-15000.0,0.00049438,120]
[313278813,1707073234737,-15000.0,0.000496,120]
[313278814,1707073234760,-15000.0,0.000496,120]
[313278815,1707073234784,-345.0,0.000497,40]
[313278816,1707073234807,-15000.0,0.00049763,120]
[313278817,1707073234829,-15000.0,0.00049763,120]
[313278818,1707073234857,-15000.0,0.00049925,120]
[313278819,1707073234879,-15000.0,0.00049925,120]
[313278820,1707073234902,-203.0,0.0004998,44]
[313278821,1707073234929,-1944539.45826924,0.0005,120]
[313278822,1707073234952,-345.0,0.0005,120]
[313278823,1707073234975,-2000000.0,0.0005,120]
[313278824,1707073234997,-1284.85277036,0.0005,60]
[313278825,1707073235019,-1566.70397318,0.0005,120]
[313278826,1707073235040,-223.89095309,0.0005,120]
[313278827,1707073235062,-1327.71461888,0.0005,120]
[313278828,1707073235084,-1742.0751111,0.0005,60]
[313278829,1707073235109,-2000.0,0.0005,120]
[313278830,1707073235133,-2000.0,0.0005,120]
[313278831,1707073235155,-10371.91727771,0.0005,120]
[313278832,1707073235177,-11926.35205751,0.0005,120]
[313278833,1707073235200,-1509.0,0.0005,100]
[313278834,1707073235222,-1000.0,0.0005,120]
[313278835,1707073235244,-8610.00606897,0.0005,60]
[313278836,1707073235265,-1497.27635742,0.0005,120]
[313278837,1707073235287,-3331.79641413,0.0005,120]
[313278838,1707073235309,-2500.0,0.0005,120]
[313278839,1707073235333,-361.84957247,0.0005,120]
[313278840,1707073235355,-364.48964529,0.0005,120]
[313278841,1707073235377,-15000.0,0.00050088,120]
[313278842,1707073235398,-15000.0,0.00050088,120]
[313278843,1707073235420,-157.0,0.000501,60]
[313278844,1707073235443,-345.0,0.000502,40]
[313278845,1707073235467,-152.69322614,0.000502,120]
[313278846,1707073235490,-152.69322614,0.000502,120]
[313278847,1707073235512,-152.69322614,0.000502,120]
[313278848,1707073235534,-152.69322614,0.000502,120]
[313278849,1707073235681,-152.69322614,0.000502,120]
[313278850,1707073235703,-15000.0,0.0005025,120]
[313278851,1707073235725,-15000.0,0.0005025,120]
[313278852,1707073235751,-311.08,0.00050411,60]
[313278853,1707073235775,-15000.0,0.00050413,120]
[313278854,1707073235803,-15000.0,0.00050413,120]
[313278855,1707073235829,-274269.79228385,0.000505,120]
[313278856,1707073236099,1016.71,0.00021745,2]
[313278857,1707073240186,-1725730.20771615,0.000505,120]
[313278858,1707073240209,-1000000.0,0.000505,120]
[313278859,1707073240229,-198.90999032,0.000505,120]
[313278860,1707073240251,-15000.0,0.00050575,120]
[313278861,1707073240272,-15000.0,0.00050575,120]
[313278862,1707073240298,-1383.399794,0.00050684,120]
[313278863,1707073240319,-165.30092095,0.000507,120]
[313278864,1707073240342,-200.0,0.000507,83]
[313278865,1707073240364,-345.0,0.000507,40]
[313278866,1707073240385,-15000.0,0.00050738,120]
[313278867,1707073240406,-15000.0,0.00050738,120]
[313278868,1707073240434,-203.0,0.0005089,46]
[313278869,1707073240455,-157.0,0.000509,60]
[313278870,1707073240476,-15000.0,0.000509,120]
[313278871,1707073240500,-618.0,0.0005097,120]
[313278872,1707073240521,-361.0,0.0005097,120]
[313278873,1707073240543,-618.0,0.0005097,120]
[313278874,1707073240564,-361.0,0.0005097,120]
[313278875,1707073240586,-679.0,0.0005097,120]
[313278876,1707073240608,-1447.0,0.0005097,120]
[313278877,1707073240629,-662.0,0.0005097,120]
[313278878,1707073240649,-679.0,0.0005097,120]
[313278879,1707073240672,-1447.0,0.0005097,120]
[313278880,1707073240694,-662.0,0.0005097,120]
[313278881,1707073240716,-618.0,0.0005098,120]
[313278882,1707073240739,-361.0,0.0005098,120]
[313278883,1707073240762,-618.0,0.0005098,120]
[313278884,1707073240785,-361.0,0.0005098,120]
[313278885,1707073240806,-618.0,0.0005098,120]
[313278886,1707073240827,-361.0,0.0005098,120]
[313278887,1707073240849,-623.55,0.0005098,120]
[313278888,1707073240871,-361.51,0.0005098,120]
[313278889,1707073240891,-155.87,0.0005098,120]
[313278890,1707073240913,-679.0,0.0005098,120]
[313278891,1707073240962,-1447.0,0.0005098,120]
[313278892,1707073240983,-662.0,0.0005098,120]
[313278893,1707073241004,-679.0,0.0005098,120]
[313278894,1707073241027,-1447.0,0.0005098,120]
[313278895,1707073241050,-662.0,0.0005098,120]
[313278896,1707073241072,-679.0,0.0005098,120]
[313278897,1707073241094,-1447.0,0.0005098,120]
[313278898,1707073241116,-662.0,0.0005098,120]
[313278899,1707073241137,-688.01,0.0005098,120]
[313278900,1707073241158,-1454.05,0.0005098,120]
[313278901,1707073241181,-663.99,0.0005098,120]
[313278902,1707073241204,-200.0,0.00050987,40]
[313278903,1707073241225,-156.63,0.0005099,120]
[313278904,1707073241247,-152.74,0.0005099,120]
[313278905,1707073241272,-618.0,0.0005099,120]
[313278906,1707073241294,-361.0,0.0005099,120]
[313278907,1707073241314,-618.0,0.0005099,120]
[313278908,1707073241337,-361.0,0.0005099,120]
[313278909,1707073241358,-618.0,0.0005099,120]
[313278910,1707073241379,-361.0,0.0005099,120]
[313278911,1707073241400,-618.0,0.0005099,120]
[313278912,1707073241424,-361.0,0.0005099,120]
[313278913,1707073241446,-150.5,0.0005099,120]
[313278914,1707073241466,-679.0,0.0005099,120]
[313278915,1707073241489,-1447.0,0.0005099,120]
[313278916,1707073241511,-662.0,0.0005099,120]
[313278917,1707073241533,-679.0,0.0005099,120]
[313278918,1707073241555,-1447.0,0.0005099,120]
[313278919,1707073241577,-662.0,0.0005099,120]
[313278920,1707073241600,-679.0,0.0005099,120]
[313278921,1707073241623,-1447.0,0.0005099,120]
[313278922,1707073241647,-662.0,0.0005099,120]
[313278923,1707073241669,-679.0,0.0005099,120]
[313278924,1707073241691,-1447.0,0.0005099,120]
[313278925,1707073241718,-662.0,0.0005099,120]
[313278926,1707073241743,-50000.0,0.00051,41]
[313278927,1707073241766,-186.67513767,0.00051,120]
[313278928,1707073241789,-2000000.0,0.00051,120]
[313278929,1707073241944,-107920.65644091,0.00051,120]
[313278930,1707073245029,-1892079.34355909,0.00051,120]
[313278931,1707073245054,-2091.38761224,0.00051,120]
[313278932,1707073245081,-2000.0,0.00051,50]
[313278933,1707073245105,-1947.17589673,0.00051,120]
[313278934,1707073245129,-15000.0,0.00051063,120]
[313278935,1707073245154,-345.0,0.000512,40]
[313278936,1707073245177,-15000.0,0.00051225,120]
[313278937,1707073245201,-2190.12,0.00051308,120]
[313278938,1707073245225,-15000.0,0.00051388,120]
[313278939,1707073245250,-847.29695095,0.0005149,120]
[313278940,1707073245275,-512.77,0.000515,60]
[313278941,1707073245302,-251.93,0.000515,45]
[313278942,1707073245328,-2000000.0,0.000515,120]
[313278943,1707073245357,-1000000.0,0.000515,120]
[313278944,1707073245381,-1383.399794,0.00051506,120]
[313278945,1707073245406,-428.10416093,0.00051535,120]
[313278946,1707073245433,-4942.11205116,0.00051539,60]
[313278947,1707073245456,-15000.0,0.0005155,120]
[313278948,1707073245479,-30981.3599749,0.000516,120]
[313278949,1707073247920,-499.99891599,0.0004,120]
[313278950,1707073248089,-419642.83695922,0.000516,120]
[313278951,1707073248113,-200.0,0.000517,87]
[313278952,1707073248136,-25312.2461943,0.000517,120]
[313278953,1707073248159,-157.0,0.000517,60]
[313278954,1707073248184,-345.0,0.000517,40]
[313278955,1707073248206,-15000.0,0.00051713,120]
[313278956,1707073248230,-3974.3,0.00051788,117]
[313278957,1707073248257,-2491.00004634,0.00051798,63]
[313278958,1707073248280,-297518.98921782,0.000518,60]
[313278959,1707073248303,-208.03,0.000518,90]
[313278960,1707073248326,-829.01,0.000518,45]
[313278961,1707073248354,-1000.0,0.000518,120]
[313278962,1707073248377,-1000.0,0.000518,120]
[313278963,1707073248401,-203.0,0.00051801,47]
[313278964,1707073248425,-15000.0,0.00051875,120]
[313278965,1707073248449,-150.0,0.00051915,60]
[313278966,1707073248472,-150.0,0.00051921,60]
[313278967,1707073248494,-150.0,0.00051923,60]
[313278968,1707073248517,-150.0,0.00051944,60]
[313278969,1707073248539,-223.84701993,0.00051951,60]
[313278970,1707073248562,-150.0,0.00051955,60]
[313278971,1707073248584,-150.0,0.00051956,60]
[313278972,1707073248606,-150.0,0.00051957,60]
[313278973,1707073248627,-150.0,0.00051962,60]
[313278974,1707073248649,-150.0,0.00051967,60]
[313278975,1707073248672,-150.0,0.00051971,60]
[313278976,1707073248695,-1580.79079233,0.0005198,120]
[313278977,1707073248880,-200.0,0.00051987,79]
[313278978,1707073248905,-200.0,0.00051987,86]
[313278979,1707073248932,-150.0,0.00051988,60]
[313278980,1707073248954,-150.0,0.00051998,60]
[313278981,1707073248976,-1000.0,0.00051999,120]
[313278982,1707073249001,-100000.0,0.00052,42]
[313278983,1707073249024,-500000.0,0.00052,120]
[313278984,1707073249049,-1000000.0,0.00052,120]
[313278985,1707073249072,-872.0,0.00052,100]
[313278986,1707073249097,-456.0,0.00052,120]
[313278987,1707073249120,-299.9,0.00052,120]
[313278988,1707073249143,-3000.0,0.00052,120]
[313278989,1707073249165,-1174.0,0.00052,120]
[313278990,1707073249189,-150.0,0.00052,120]
[313278991,1707073249212,-1000.0,0.00052,120]
[313278992,1707073249234,-1000.0,0.00052,120]
[313278993,1707073249258,-157.57440023,0.00052,120]
[313278994,1707073249280,-150.0,0.00052,52]
[313278995,1707073249303,-350.0,0.00052,60]
[313278996,1707073249326,-752.0,0.00052,120]
[313278997,1707073249351,-300.0,0.00052,120]
[313278998,1707073249374,-390.0,0.00052,120]
[313278999,1707073249398,-507.0,0.00052,120]
[313279000,1707073249421,-659.0,0.00052,120]
[313279001,1707073249443,-856.0,0.00052,120]
[313279002,1707073249464,-1113.0,0.00052,120]
[313279003,1707073249485,-1448.0,0.00052,120]
[313279004,1707073249505,-1882.0,0.00052,120]
[313279005,1707073249526,-2447.0,0.00052,120]
[313279006,1707073249548,-2392.0,0.00052,120]
[313279007,1707073249571,-2576.0,0.00052,120]
[313279008,1707073249593,-33463.61400785,0.00052,120]
[313279009,1707073249615,-5000.0,0.00052,60]
[313279010,1707073249638,-251.53,0.00052,60]
[313279011,1707073249661,-384.0,0.00052,120]
[313279012,1707073249683,-760.63014263,0.00052,120]
[313279013,1707073249706,-13934.92485354,0.00052,120]
[313279014,1707073249728,-150.94,0.00052,120]
[313279015,1707073249751,-150.94,0.00052,120]
[313279016,1707073249774,-150.94,0.00052,120]
[313279017,1707073249796,-150.94,0.00052,120]
[313279018,1707073249820,-150.94,0.00052,120]
[313279019,1707073249843,-150.94,0.00052,120]
[313279020,1707073249866,-150.94,0.00052,120]
[313279021,1707073249889,-150.94,0.00052,120]
[313279022,1707073249912,-150.94,0.00052,120]
[313279023,1707073249935,-150.94,0.00052,120]
[313279024,1707073249957,-150.94,0.00052,120]
[313279025,1707073249989,-150.94,0.00052,120]
[313279026,1707073250011,-150.94,0.00052,120]
[313279027,1707073250034,-150.94,0.00052,120]
[313279028,1707073250058,-150.94,0.00052,120]
[313279029,1707073250081,-150.94,0.00052,120]
[313279030,1707073250105,-150.94,0.00052,120]
[313279031,1707073250128,-150.94,0.00052,120]
[313279032,1707073250151,-150.94,0.00052,120]
[313279033,1707073250174,-150.94,0.00052,120]
[313279034,1707073250197,-150.94,0.00052,120]
[313279035,1707073250226,-150.94,0.00052,120]
[313279036,1707073250248,-150.94,0.00052,120]
[313279037,1707073250271,-150.94,0.00052,120]
[313279038,1707073250293,-150.94,0.00052,120]
[313279039,1707073250317,-150.94,0.00052,120]
[313279040,1707073250342,-150.94,0.00052,120]
[313279041,1707073250363,-150.94,0.00052,120]
[313279042,1707073250387,-150.94,0.00052,120]
[313279043,1707073250409,-150.94,0.00052,120]
[313279044,1707073250433,-150.94,0.00052,120]
[313279045,1707073250457,-150.94,0.00052,120]
[313279046,1707073250488,-150.94,0.00052,120]
[313279047,1707073250512,-150.94,0.00052,120]
[313279048,1707073250535,-150.94,0.00052,120]
[313279049,1707073250558,-150.94,0.00052,120]
[313279050,1707073250580,-150.94,0.00052,120]
[313279051,1707073250603,-150.94,0.00052,120]
[313279052,1707073250629,-150.94,0.00052,120]
[313279053,1707073250652,-150.94,0.00052,120]
[313279054,1707073250677,-150.94,0.00052,120]
[313279055,1707073250699,-150.94,0.00052,120]
[313279056,1707073250723,-150.94,0.00052,120]
[313279057,1707073250746,-150.94,0.00052,120]
[313279058,1707073250769,-150.94,0.00052,120]
[313279059,1707073250792,-150.94,0.00052,120]
[313279060,1707073250815,-150.94,0.00052,120]
[313279061,1707073250838,-150.94,0.00052,120]
[313279062,1707073250861,-150.94,0.00052,120]
[313279063,1707073250886,-150.94,0.00052,120]
[313279064,1707073250909,-150.94,0.00052,120]
[313279065,1707073250932,-150.94,0.00052,120]
[313279066,1707073250955,-150.94,0.00052,120]
[313279067,1707073250979,-150.94,0.00052,120]
[313279068,1707073251002,-150.94,0.00052,120]
[313279069,1707073251025,-150.94,0.00052,120]
[313279070,1707073251049,-150.94,0.00052,120]
[313279071,1707073251073,-150.94,0.00052,120]
[313279072,1707073251095,-150.94,0.00052,120]
[313279073,1707073251118,-150.94,0.00052,120]
[313279074,1707073251141,-150.94,0.00052,120]
[313279075,1707073251164,-150.94,0.00052,120]
[313279076,1707073251188,-150.94,0.00052,120]
[313279077,1707073251307,-150.94,0.00052,120]
[313279078,1707073251356,-150.94,0.00052,120]
[313279079,1707073251379,-150.94,0.00052,120]
[313279080,1707073251402,-150.94,0.00052,120]
[313279081,1707073251425,-150.94,0.00052,120]
[313279082,1707073251447,-150.94,0.00052,120]
[313279083,1707073251470,-150.94,0.00052,120]
[313279084,1707073251496,-150.94,0.00052,120]
[313279085,1707073251520,-150.94,0.00052,120]
[313279086,1707073251541,-150.94,0.00052,120]
[313279087,1707073251567,-4000.0,0.00052,120]
[313279088,1707073251589,-15000.0,0.00052038,120]
[313279089,1707073251612,-1385.227699,0.00052054,120]
[313279090,1707073251634,-250.3887,0.00052054,120]
[313279091,1707073251657,-2766.799588,0.00052054,120]
[313279092,1707073251681,-2766.799588,0.00052054,120]
[313279093,1707073251703,-345.849948,0.00052054,120]
[313279094,1707073251726,-1210.474824,0.00052054,120]
[313279095,1707073251748,-2420.949638,0.00052054,120]
[313279096,1707073251778,-211.6425,0.00052054,120]
[313279097,1707073251800,-5297.447132,0.00052054,120]
[313279098,1707073251824,-6010.84,0.00052055,33]
[313279099,1707073251847,-6004.0,0.00052055,33]
[313279100,1707073251944,4000.0,0.00052,120]
[313279101,1707073252324,2500.0,0.0005,120]
[313279102,1707073252412,300.1529767,0.0005,120]
[313279103,1707073254528,4000.0,0.00052,120]
[313279104,1707073254683,155.0,0.00021738,2]
[313279105,1707073254951,3566.68812688,0.0004398,117]
[313279106,1707073256414,376.62426664,0.0005,120]
[313279107,1707073260339,4000.0,0.00052,120]
[313279108,1707073262284,160.6,0.00021907,2]
[313279109,1707073262497,160.6,0.00022022,2]
[313279110,1707073262685,160.6,0.00022136,2]
[313279111,1707073262887,160.6,0.0002225,2]
[313279112,1707073263086,160.6,0.00022364,2]
[313279113,1707073263289,160.6,0.00022478,2]
[313279114,1707073265108,605.95141749,0.000498,120]
[313279115,1707073265984,4000.0,0.00052,120]
[313279116,1707073268204,2500.0,0.0005,120]
[313279117,1707073269620,500.0,0.00021749,2]
[313279118,1707073278886,-1000.0,0.00039351,30]
[313279119,1707073278911,-5000.0,0.0004,30]
[313279120,1707073278934,-1238.2797381,0.0004,30]
[313279121,1707073278957,-1170.05065583,0.0004,30]
[313279122,1707073278982,-153.29405713,0.00040548,30]
[313279123,1707073279005,-160.99975112,0.00040762,30]
[313279124,1707073279027,-635.22892666,0.00040803,30]
[313279125,1707073279052,-203.0,0.0004087,31]
[313279126,1707073279081,-4000.0,0.00041096,30]
[313279127,1707073279108,-155.15706483,0.00041202,30]
[313279128,1707073279131,-153.29405713,0.0004152,30]
[313279129,1707073279153,-156.80178581,0.00041647,30]
[313279130,1707073279178,-203.0,0.00041781,32]
[313279131,1707073279205,-192.59562084,0.000419,30]
[313279132,1707073279228,-39614.0,0.00041968,30]
[313279133,1707073279251,-151.73815935,0.00041975,30]
[313279134,1707073279273,-2700.41189564,0.00042,30]
[313279135,1707073279297,-2168.57829593,0.00042,30]
[313279136,1707073279320,-3955.0,0.00042,30]
[313279137,1707073279344,-10000.0,0.00042,30]
[313279138,1707073279367,-10000.0,0.00042,30]
[313279139,1707073279389,-10000.0,0.00042,30]
[313279140,1707073279411,-10000.0,0.00042,30]
[313279141,1707073279436,-10000.0,0.00042,30]
[313279142,1707073279461,-14382.79383862,0.00042,30]
[313279143,1707073279483,-726.0,0.00042,30]
[313279144,1707073279505,-732.32099382,0.00042,30]
[313279145,1707073279529,-39614.0,0.00042401,30]
[313279146,1707073279556,-156.80178581,0.00042419,30]
[313279147,1707073279579,-156.08841774,0.00042435,30]
[313279148,1707073279603,-635.22892666,0.00042644,30]
[313279149,1707073279626,-635.22892666,0.00042753,30]
[313279150,1707073279649,-39614.0,0.00042834,30]
[313279151,1707073279671,-723.03575259,0.00042888,32]
[313279152,1707073279696,-574.51429211,0.00043,30]
[313279153,1707073279717,-2168.0,0.00043,30]
[313279154,1707073279741,-3954.0,0.00043,30]
[313279155,1707073279764,-10000.0,0.00043,30]
[313279156,1707073279787,-10000.0,0.00043,30]
[313279157,1707073279809,-10000.0,0.00043,30]
[313279158,1707073279834,-10000.0,0.00043,30]
[313279159,1707073279859,-10000.0,0.00043,30]
[313279160,1707073279883,-14382.0,0.00043,30]
[313279161,1707073279905,-726.0,0.00043,30]
[313279162,1707073279928,-732.0,0.00043,30]
[313279163,1707073279951,-635.22892666,0.00043172,30]
[313279164,1707073279975,-39614.0,0.00043266,30]
[313279165,1707073279998,-394.69875275,0.000433,30]
[313279166,1707073280021,-180.32653704,0.00043539,30]
[313279167,1707073280045,-39614.0,0.00043699,30]